fUSD/lending_fUSD_20250301
["ID","MTS","AMOUNT","RATE_DAILY","PERIOD"]
[354999111,1740859839855,-135.33212663,0.000372,103]
[354999709,1740859845645,-7400.04524679,0.00025105,2]
[354999725,1740859845786,-2068.43000372,0.00025105,2]
[355000255,1740859851041,-9847.37654949,0.00025105,2]
[355000257,1740859851050,-38.8864746,0.000372,103]
[355000259,1740859851060,-4229.6298,0.00037234,2]
[355000261,1740859851069,-1095.5034,0.00037234,2]
[355000263,1740859851079,-855.1374,0.00037234,2]
[355000265,1740859851088,-158.6199,0.00037234,2]
[355000267,1740859851097,-696.1798,0.00037234,2]
[355000269,1740859851106,-23900.0,0.00037334,2]
[355000271,1740859851116,-1000.0,0.00037459,2]
[355000273,1740859851127,-426.0,0.00038,120]
[355000274,1740859851136,-150.0,0.00038021,2]
[355000276,1740859851146,-174.21860121,0.00038229,110]
[355000278,1740859851155,-170.92,0.00038235,120]
[355000280,1740859851165,-157.7,0.00038435,2]
[355000282,1740859851174,-150.0,0.00038962,2]
[355000284,1740859851183,-643.05819419,0.00039229,2]
[355000286,1740859851192,-205.7507114,0.00039233,8]
[355000288,1740859851202,-500.0,0.00039452,2]
[355000290,1740859851211,-500.0,0.00039452,2]
[355000292,1740859851221,-500.0,0.00039452,2]
[355000294,1740859851230,-500.0,0.00039452,2]
[355000296,1740859851239,-500.0,0.00039452,2]
[355000298,1740859851249,-500.0,0.00039452,2]
[355000300,1740859851258,-500.0,0.00039452,2]
[355000302,1740859851267,-500.0,0.00039452,2]
[355000304,1740859851276,-605.0,0.00039452,2]
[355000305,1740859851286,-258.59,0.00039452,2]
[355000307,1740859851295,-150.0,0.00039902,2]
[355000309,1740859851304,-500.0,0.0004,120]
[355000311,1740859851314,-5000.0,0.0004,5]
[355000313,1740859851323,-655.04,0.000405,14]
[355000315,1740859851332,-500.0,0.000405,2]
[355000317,1740859851342,-500.0,0.000405,2]
[355000319,1740859851351,-500.0,0.000405,2]
[355000321,1740859851360,-500.0,0.000405,2]
[355000323,1740859851369,-500.0,0.000405,2]
[355000325,1740859851379,-500.0,0.000405,2]
[355000327,1740859851388,-882.0,0.000405,2]
[355000329,1740859851397,-150.0,0.00040842,2]
[355000331,1740859851407,-585.18646172,0.00040854,5]
[355000333,1740859851416,-157.7,0.00040965,2]
[355000335,1740859851425,-198.55514801,0.00041,11]
[355000336,1740859851434,-150.0,0.00041035,7]
[355000338,1740859851443,-1000.0,0.00041621,2]
[355000340,1740859851452,-150.0,0.00041782,2]
[355000342,1740859851461,-150.0,0.00042723,2]
[355000344,1740859851471,-157.7,0.00043495,2]
[355000346,1740859851480,-150.0,0.00043663,2]
[355000348,1740859851489,-484.27494547,0.00043726,30]
[355000350,1740859851499,-150.0,0.00044,57]
[355000352,1740859851508,-300.0,0.00044,120]
[355000354,1740859851517,-399.62,0.000445,36]
[355000356,1740859851527,-399.62,0.000445,36]
[355000358,1740859851536,-399.62,0.000445,36]
[355000360,1740859851546,-399.62,0.000445,36]
[355000362,1740859851555,-399.62,0.000445,36]
[355000364,1740859851564,-399.62,0.000445,36]
[355000366,1740859851576,-399.62,0.000445,36]
[355000368,1740859851585,-399.62,0.000445,36]
[355000369,1740859851597,-399.62,0.000445,36]
[355000371,1740859851606,-399.62,0.000445,36]
[355000373,1740859851616,-399.62,0.000445,36]
[355000375,1740859851625,-399.62,0.000445,36]
[355000377,1740859851635,-258.59,0.00044585,2]
[355000379,1740859851645,-150.0,0.00044603,2]
[355000381,1740859851654,-3000.0,0.000449,2]
[355000382,1740859851663,-150.0,0.00045544,2]
[355000383,1740859851672,-1000.0,0.00045783,2]
[355000384,1740859851682,-157.7,0.00046025,2]
[355000385,1740859851691,-1061.0,0.00046028,30]
[355000386,1740859851700,-150.0,0.00046484,2]
[355000387,1740859851710,-988.87,0.00046999,120]
[355000388,1740859851719,-988.87,0.00046999,120]
[355000389,1740859851728,-988.87,0.00046999,120]
[355000390,1740859851737,-988.87,0.00046999,120]
[355000391,1740859851746,-988.87,0.00046999,120]
[355000392,1740859851755,-988.87,0.00046999,120]
[355000393,1740859851763,-988.87,0.00046999,120]
[355000394,1740859851772,-988.87,0.00046999,120]
[355000395,1740859851781,-988.87,0.00046999,120]
[355000396,1740859851790,-166.0,0.00047,90]
[355000397,1740859851799,-296.909,0.00047204,79]
[355000398,1740859851808,-150.0,0.00047424,2]
[355000399,1740859851816,-3000.0,0.000477,2]
[355000400,1740859851825,-300.0,0.00048,120]
[355000401,1740859851835,-31257.08411614,0.00048,120]
[355000402,1740859851844,-170.92,0.00048087,120]
[355000403,1740859851853,-500.0,0.0004835,10]
[355000404,1740859851862,-150.0,0.00048365,2]
[355000405,1740859851871,-153.92584601,0.000484,120]
[355000406,1740859851880,-1061.0,0.0004845,30]
[355000407,1740859851890,-399.62,0.000485,45]
[355000408,1740859851899,-399.62,0.000485,45]
[355000409,1740859851908,-399.62,0.000485,45]
[355000410,1740859851917,-399.62,0.000485,45]
[355000411,1740859851926,-399.62,0.000485,45]
[355000413,1740859851935,-399.62,0.000485,45]
[355000415,1740859851944,-399.62,0.000485,45]
[355000417,1740859851953,-399.62,0.000485,45]
[355000419,1740859851963,-399.62,0.000485,45]
[355000421,1740859851972,-399.62,0.000485,45]
[355000423,1740859851982,-399.62,0.000485,45]
[355000425,1740859851991,-399.62,0.000485,45]
[355000427,1740859852000,-399.62,0.000485,45]
[355000429,1740859852010,-399.62,0.000485,45]
[355000431,1740859852020,-399.62,0.000485,45]
[355000432,1740859852030,-399.62,0.000485,45]
[355000434,1740859852039,-399.62,0.000485,45]
[355000436,1740859852049,-399.62,0.000485,45]
[355000438,1740859852058,-399.62,0.000485,45]
[355000440,1740859852068,-399.62,0.000485,45]
[355000442,1740859852077,-399.62,0.000485,45]
[355000444,1740859852086,-399.62,0.000485,45]
[355000446,1740859852096,-399.62,0.000485,45]
[355000448,1740859852105,-399.62,0.000485,45]
[355000450,1740859852114,-157.7,0.00048556,2]
[355000452,1740859852123,-205.7507114,0.00048567,11]
[355000454,1740859852132,-153.92584601,0.000489,120]
[355000456,1740859852141,-166.0,0.00048904,90]
[355000458,1740859852151,-988.87,0.00048999,120]
[355000460,1740859852160,-988.87,0.00048999,120]
[355000462,1740859852169,-988.87,0.00048999,120]
[355000464,1740859852178,-988.87,0.00048999,120]
[355000466,1740859852187,-988.87,0.00048999,120]
[355000468,1740859852196,-988.87,0.00048999,120]
[355000470,1740859852205,-2053.6,0.00048999,120]
[355000472,1740859852214,-1977.74,0.00048999,120]
[355000473,1740859852223,-988.87,0.00048999,120]
[355000475,1740859852232,-988.87,0.00048999,120]
[355000477,1740859852241,-988.87,0.00048999,120]
[355000479,1740859852251,-988.87,0.00048999,120]
[355000481,1740859852260,-503.92,0.00048999,2]
[355000483,1740859852270,-503.92,0.00049273,2]
[355000485,1740859852278,-150.0,0.00049305,2]
[355000487,1740859852288,-500.0,0.00049315,30]
[355000489,1740859852297,-441.0,0.00049315,30]
[355000492,1740859852311,-1000.0,0.00049315,120]
[355000494,1740859852321,-529.11948832,0.00049315,30]
[355000496,1740859852331,-500.0,0.00049342,30]
[355000498,1740859852341,-500.0,0.0004937,30]
[355000500,1740859852351,-500.0,0.00049397,30]
[355000502,1740859852360,-153.92584601,0.000494,120]
[355000504,1740859852369,-500.0,0.00049425,30]
[355000506,1740859852380,-1000.0,0.00049434,2]
[355000508,1740859852389,-2500.0,0.00049434,2]
[355000510,1740859852399,-500.0,0.00049452,30]
[355000512,1740859852408,-500.0,0.00049479,30]
[355000514,1740859852417,-5011.69479,0.00049502,30]
[355000516,1740859852427,-500.0,0.00049507,30]
[355000518,1740859852437,-500.0,0.00049534,30]
[355000520,1740859852447,-503.92,0.00049547,120]
[355000522,1740859852456,-729.0,0.00049561,7]
[355000524,1740859852466,-500.0,0.00049562,30]
[355000526,1740859852475,-500.0,0.00049589,30]
[355000528,1740859852485,-500.0,0.00049616,30]
[355000530,1740859852494,-500.0,0.00049644,30]
[355000531,1740859852503,-500.0,0.00049671,30]
[355000533,1740859852512,-500.0,0.00049699,30]
[355000535,1740859852521,-258.59,0.00049719,2]
[355000537,1740859852531,-500.0,0.00049726,30]
[355000539,1740859852540,-500.0,0.00049753,30]
[355000541,1740859852550,-773.36095173,0.00049781,30]
[355000543,1740859852559,-503.92,0.00049821,120]
[355000545,1740859852568,-153.92584601,0.000499,120]
[355000547,1740859852578,-1000.0,0.00049945,120]
[355000549,1740859852587,-500.0,0.0005,120]
[355000551,1740859852600,-4042.0,0.0005,8]
[355000553,1740859852609,-200.0,0.0005,120]
[355000555,1740859852619,-503.92,0.00050095,120]
[355000557,1740859852631,-150.0,0.00050245,2]
[355000559,1740859852640,-1554.17,0.00050274,30]
[355000561,1740859852650,-915.4812,0.0005034,3]
[355000563,1740859852660,-2000.0,0.0005034,3]
[355000565,1740859852671,-503.92,0.00050369,120]
[355000567,1740859852681,-3000.0,0.000504,2]
[355000569,1740859852692,-153.92584601,0.000504,120]
[355000571,1740859852702,-344.44,0.00050411,30]
[355000573,1740859852712,-988.87,0.00050499,120]
[355000574,1740859852721,-988.87,0.00050499,120]
[355000576,1740859852731,-988.87,0.00050499,120]
[355000578,1740859852741,-311.78,0.00050499,120]
[355000580,1740859852752,-988.87,0.00050499,120]
[355000582,1740859852760,-988.87,0.00050499,120]
[355000584,1740859852770,-988.87,0.00050499,120]
[355000586,1740859852778,-200.0,0.000505,120]
[355000588,1740859852787,-444.39071,0.00050593,71]
[355000590,1740859852797,-5550.0,0.000506,120]
[355000592,1740859852806,-503.92,0.00050643,120]
[355000594,1740859852815,-500.0,0.00050799,120]
[355000596,1740859852824,-500.64670075,0.00050799,120]
[355000598,1740859852838,-500.0,0.00050799,120]
[355000600,1740859852848,-500.0,0.00050799,120]
[355000602,1740859852857,-500.0,0.00050799,120]
[355000604,1740859852867,-212.30557825,0.00050799,60]
[355000606,1740859852878,-4613.97,0.00050865,120]
[355000608,1740859852887,-500.0,0.00050865,120]
[355000610,1740859852897,-321.82309792,0.00050866,120]
[355000612,1740859852907,-246.54888107,0.00050898,120]
[355000614,1740859852916,-500.0,0.00050898,120]
[355000616,1740859852926,-195.16323838,0.00050898,120]
[355000618,1740859852935,-500.0,0.00050898,120]
[355000620,1740859852945,-400.86620647,0.00050898,120]
[355000622,1740859852955,-1263.54,0.00050898,120]
[355000624,1740859852965,-500.0,0.00050898,120]
[355000626,1740859852975,-548.07,0.00050898,120]
[355000628,1740859852984,-500.0,0.00050898,120]
[355000630,1740859852994,-500.0,0.00050898,120]
[355000633,1740859853004,-500.0,0.00050898,120]
[355000634,1740859853014,-500.0,0.00050898,120]
[355000636,1740859853023,-2000.0,0.00050898,120]
[355000638,1740859853032,-500.0,0.00050899,120]
[355000640,1740859853042,-79614.9758,0.000509,2]
[355000642,1740859853052,-2186.8306,0.000509,2]
[355000644,1740859853061,-500.0,0.000509,2]
[355000646,1740859853070,-1378.9751,0.000509,2]
[355000648,1740859853079,-1000.0,0.000509,2]
[355000650,1740859853088,-169.1850946,0.000509,42]
[355000652,1740859853097,-5000.0,0.000509,120]
[355000654,1740859853106,-1248.37162506,0.000509,23]
[355000656,1740859853116,-153.92584601,0.000509,120]
[355000658,1740859853126,-1194.9299539,0.000509,15]
[355000660,1740859853135,-503.92,0.00050917,120]
[355000662,1740859853144,-1194.92995383,0.00050956,15]
[355000664,1740859853154,-865060.11335104,0.00051,120]
[355000666,1740859853163,-209.75,0.00051,120]
[355000668,1740859853173,-2828.0641119,0.00051,120]
[355000670,1740859853183,-1000000.0,0.00051,120]
[355000672,1740859853193,-1000000.0,0.00051,120]
[355000674,1740859853202,-1000000.0,0.00051,120]
[355000676,1740859853212,-2110.0,0.00051,30]
[355000678,1740859853221,-603.99,0.00051,14]
[355000680,1740859853231,-1061.0,0.00051,30]
[355000682,1740859853240,-200.00000075,0.00051,120]
[355000684,1740859853249,-1194.92995383,0.00051011,15]
[355000686,1740859853259,-1194.92995383,0.00051067,15]
[355000688,1740859853268,-500.0,0.00051073,120]
[355000690,1740859853277,-500.0,0.00051073,120]
[355000692,1740859853287,-500.0,0.00051073,120]
[355000694,1740859853297,-157.7,0.00051086,2]
[355000696,1740859853307,-5550.0,0.000511,120]
[355000698,1740859853316,-1194.92995383,0.00051122,15]
[355000699,1740859853326,-4613.97,0.00051139,120]
[355000701,1740859853335,-500.0,0.00051139,120]
[355000703,1740859853345,-500.0,0.00051172,120]
[355000706,1740859853360,-1263.54,0.00051172,120]
[355000708,1740859853369,-500.0,0.00051172,120]
[355000710,1740859853380,-548.07,0.00051172,120]
[355000712,1740859853389,-500.0,0.00051172,120]
[355000714,1740859853399,-367.76057168,0.00051172,120]
[355000716,1740859853408,-500.0,0.00051172,120]
[355000718,1740859853418,-500.0,0.00051173,120]
[355000720,1740859853427,-1194.92995383,0.00051178,15]
[355000722,1740859853437,-150.0,0.00051185,2]
[355000724,1740859853446,-503.92,0.00051191,120]
[355000726,1740859853456,-1194.92995383,0.00051233,15]
[355000728,1740859853466,-150.0,0.00051259,120]
[355000730,1740859853476,-1194.92995383,0.00051289,15]
[355000732,1740859853485,-1194.92995383,0.00051344,15]
[355000734,1740859853495,-500.0,0.00051347,120]
[355000736,1740859853505,-500.0,0.00051347,120]
[355000738,1740859853515,-500.0,0.00051347,120]
[355000740,1740859853526,-1194.92995383,0.000514,15]
[355000742,1740859853536,-4613.97,0.00051413,120]
[355000744,1740859853545,-500.0,0.00051413,120]
[355000746,1740859853556,-598.94084,0.00051446,120]
[355000748,1740859853566,-1263.54,0.00051446,120]
[355000750,1740859853578,-500.0,0.00051446,120]
[355000753,1740859853589,-548.07,0.00051446,120]
[355000755,1740859853603,-500.0,0.00051446,120]
[355000757,1740859853613,-500.0,0.00051446,120]
[355000759,1740859853623,-500.0,0.00051447,120]
[355000761,1740859853634,-503.92,0.00051465,120]
[355000763,1740859853645,-794063.1900857,0.000515,120]
[355001442,1740860585899,250.0,0.00013,2]
[355001443,1740860586971,300.0,0.00015,2]
[355001445,1740860708830,58900.0,0.00015,2]
[355001507,1740861031811,-300.0,0.00014999,2]
[355001508,1740861031822,-2901.92352312,0.00015,2]
[355001509,1740861031835,-5215.52243773,0.00015,2]
[355001522,1740861037660,-17568.5991513,0.00015,2]
[355001523,1740861037828,-17208.73690105,0.00015,2]
[355001747,1740861040190,-50528.39970673,0.00015,2]
[355001749,1740861040201,-350.0,0.00017,2]
[355001751,1740861040211,-876.59889385,0.0002,2]
[355001753,1740861040221,-1721.04869957,0.0002,2]
[355001755,1740861040231,-8518.38061,0.000214,2]
[355001757,1740861040240,-188.4,0.00021918,2]
[355001759,1740861040249,-610.00001,0.00025,2]
[355001761,1740861040259,-3211.98301419,0.00025,60]
[355001763,1740861040268,-560.92880039,0.00025,2]
[355001765,1740861040277,-10198.03616432,0.00027,2]
[355001767,1740861040286,-215.22,0.000273,2]
[355001769,1740861040296,-150.99,0.00029009,2]
[355001771,1740861040305,-150.0,0.0003003,2]
[355001773,1740861040315,-3358.03,0.0003003,2]
[355001775,1740861040324,-151.0,0.0003123,2]
[355001777,1740861040333,-150.0,0.00032151,2]
[355001779,1740861040342,-150.0,0.00032151,2]
[355001781,1740861040351,-150.0,0.00032151,2]
[355001783,1740861040361,-150.0,0.00032151,2]
[355001785,1740861040370,-150.0,0.00032151,2]
[355001787,1740861040379,-250.0,0.00032151,2]
[355001789,1740861040388,-164.85915313,0.00032151,120]
[355001791,1740861040398,-645.66,0.000322,7]
[355001793,1740861040407,-204.95159893,0.000329,6]
[355001795,1740861040416,-3038.29897477,0.000329,2]
[355002219,1740861044423,-12306.58102523,0.000329,2]
[355002221,1740861044433,-1295.98,0.000329,2]
[355002223,1740861044442,-5518.42513124,0.00034822,2]
[355002225,1740861044455,-174.21860121,0.000372,103]
[355002227,1740861044464,-150.0,0.00039,120]
[355002229,1740861044474,-661.19,0.00039452,2]
[355002231,1740861044483,-538.05,0.000408,14]
[355002233,1740861044493,-750.0,0.000414,30]
[355002235,1740861044502,-289.6,0.00043422,2]
[355002236,1740861044512,-1473.2924417,0.00043776,2]
[355002238,1740861044521,-188.33,0.00043849,2]
[355002240,1740861044530,-2427.98,0.000442,8]
[355002242,1740861044539,-255.83,0.000445,36]
[355002244,1740861044549,-255.83,0.000445,36]
[355002246,1740861044558,-255.83,0.000445,36]
[355002248,1740861044567,-255.83,0.000445,36]
[355002250,1740861044577,-255.83,0.000445,36]
[355002252,1740861044587,-255.83,0.000445,36]
[355002254,1740861044596,-255.83,0.000445,36]
[355002256,1740861044607,-255.83,0.000445,36]
[355002257,1740861044616,-255.83,0.000445,36]
[355002259,1740861044626,-255.83,0.000445,36]
[355002261,1740861044635,-255.83,0.000445,36]
[355002263,1740861044645,-255.83,0.000445,36]
[355002265,1740861044655,-661.19,0.00044585,2]
[355002267,1740861044665,-185.22,0.00044847,2]
[355002269,1740861044675,-3000.0,0.000449,2]
[355002271,1740861044684,-314.706,0.000449,72]
[355002273,1740861044696,-323.14,0.00045049,2]
[355002275,1740861044705,-46243.18025669,0.00046,2]
[355002278,1740861044725,-17180.0916,0.00046,2]
[355002373,1740861045895,-27563.61093631,0.00046,2]
[355002375,1740861045906,-4406.25,0.00046,2]
[355002398,1740861046127,-2546.11238792,0.00046,2]
[355002400,1740861046140,-8256.31113055,0.00046,2]
[355002402,1740861046150,-3928.01,0.00046989,2]
[355002404,1740861046160,-849.12,0.00047012,2]
[355002406,1740861046169,-307.28,0.00047058,2]
[355002408,1740861046178,-191.48,0.00047128,2]
[355002410,1740861046188,-323.14,0.00047313,2]
[355002412,1740861046197,-1200.0,0.000474,8]
[355002414,1740861046207,-282.34,0.00047549,2]
[355002416,1740861046216,-150.0,0.00047549,7]
[355002418,1740861046225,-300.0,0.00047651,2]
[355002420,1740861046235,-3000.0,0.000477,2]
[355002422,1740861046244,-806.04,0.00047864,2]
[355002424,1740861046254,-275.78141233,0.0004788,100]
[355002426,1740861046264,-154.32,0.0004788,2]
[355002428,1740861046273,-200.0,0.00047974,2]
[355002430,1740861046283,-2349.74631496,0.00047996,2]
[355002432,1740861046292,-379.99,0.00048002,2]
[355002434,1740861046302,-2515.96,0.000482,8]
[355002436,1740861046311,-154.32,0.00048248,2]
[355002438,1740861046320,-255.83,0.000485,45]
[355002440,1740861046330,-255.83,0.000485,45]
[355002442,1740861046339,-255.83,0.000485,45]
[355002444,1740861046349,-255.83,0.000485,45]
[355002446,1740861046359,-255.83,0.000485,45]
[355002448,1740861046368,-255.83,0.000485,45]
[355002450,1740861046378,-255.83,0.000485,45]
[355002452,1740861046387,-255.83,0.000485,45]
[355002454,1740861046397,-255.83,0.000485,45]
[355002456,1740861046406,-255.83,0.000485,45]
[355002457,1740861046415,-255.83,0.000485,45]
[355002459,1740861046425,-255.83,0.000485,45]
[355002461,1740861046434,-255.83,0.000485,45]
[355002463,1740861046443,-255.83,0.000485,45]
[355002465,1740861046454,-255.83,0.000485,45]
[355002467,1740861046463,-255.83,0.000485,45]
[355002469,1740861046474,-255.83,0.000485,45]
[355002471,1740861046484,-255.83,0.000485,45]
[355002473,1740861046493,-255.83,0.000485,45]
[355002475,1740861046503,-255.83,0.000485,45]
[355002477,1740861046512,-255.83,0.000485,45]
[355002479,1740861046522,-255.83,0.000485,45]
[355002481,1740861046531,-255.83,0.000485,45]
[355002483,1740861046540,-255.83,0.000485,45]
[355002485,1740861046550,-154.32,0.00048617,2]
[355002487,1740861046560,-152.0,0.00048757,3]
[355002489,1740861046569,-1061.0,0.00048925,30]
[355002491,1740861046579,-154.32,0.00048985,2]
[355002493,1740861046588,-150.0,0.00049078,2]
[355002495,1740861046598,-436.57427063,0.00049203,2]
[355002497,1740861046608,-22234.96,0.00049334,8]
[355002499,1740861046617,-154.32,0.00049353,2]
[355002501,1740861046627,-323.14,0.00049577,2]
[355002503,1740861046636,-250.0,0.000496,2]
[355002505,1740861046646,-601.73202009,0.000496,2]
[355002507,1740861046655,-150.0,0.00049634,2]
[355002509,1740861046665,-661.19,0.00049719,2]
[355002511,1740861046675,-200.0,0.00049721,2]
[355002513,1740861046685,-287.33,0.00049721,2]
[355002515,1740861046695,-154.32,0.00049722,2]
[355002516,1740861046708,-1000.0,0.00049749,120]
[355002519,1740861046718,-336.98,0.00049821,2]
[355002521,1740861046728,-250.0,0.00049848,120]
[355002523,1740861046737,-164.17,0.0004988,2]
[355002524,1740861046747,-23900.0,0.00049914,2]
[355002526,1740861046756,-170.92,0.00049982,120]
[355002528,1740861046766,-500.0,0.0005,120]
[355002530,1740861046776,-500.0,0.0005,120]
[355002533,1740861046788,-154.32,0.0005009,2]
[355002534,1740861046798,-40832.71248741,0.000501,8]
[355002537,1740861046811,-2919.96751259,0.000501,8]
[355002539,1740861046820,-1000.0,0.0005016,10]
[355002540,1740861046829,-3821.75154645,0.00050161,2]
[355003383,1740862232091,-150.0,0.000273,2]
[355003384,1740862232101,-225.98,0.000325,7]
[355003385,1740862232111,-187.19,0.00039452,2]
[355003386,1740862232121,-188.32,0.000412,14]
[355003387,1740862232131,-150.0,0.0004318,5]
[355003388,1740862232141,-1503.27440453,0.00043181,7]
[355003414,1740862238041,-308.04390131,0.00043181,7]
[355003415,1740862238051,-108.00609869,0.00043181,30]
[355004064,1740862246121,-4170.1,0.00043181,30]
[355004065,1740862246134,-12089.97560929,0.00043181,30]
[355004066,1740862246143,-163.78,0.000445,36]
[355004067,1740862246153,-163.78,0.000445,36]
[355004068,1740862246163,-163.78,0.000445,36]
[355004069,1740862246172,-163.78,0.000445,36]
[355004070,1740862246182,-163.78,0.000445,36]
[355004071,1740862246191,-163.78,0.000445,36]
[355004072,1740862246202,-163.78,0.000445,36]
[355004073,1740862246211,-163.78,0.000445,36]
[355004074,1740862246221,-163.78,0.000445,36]
[355004075,1740862246231,-163.78,0.000445,36]
[355004076,1740862246240,-163.78,0.000445,36]
[355004077,1740862246250,-163.78,0.000445,36]
[355004078,1740862246259,-1317.6,0.00045753,8]
[355004079,1740862246269,-294.01,0.00046053,2]
[355004080,1740862246279,-1619.90128847,0.000466,2]
[355004081,1740862246301,-1380.09871153,0.000466,2]
[355004082,1740862246311,-770.24338847,0.000467,8]
[355004132,1740862390391,250.0,0.00013,2]
[355004133,1740862405691,-1183.13376634,0.00047,40]
[355004134,1740862405719,-2134196.29810533,0.00047,34]
[355004135,1740862405746,-5000.0,0.00047,120]
[355004136,1740862405773,-250.0,0.00048097,120]
[355004137,1740862405802,-170.92,0.00048215,120]
[355004138,1740862405833,-163.78,0.000485,45]
[355004139,1740862405864,-163.78,0.000485,45]
[355004140,1740862405893,-163.78,0.000485,45]
[355004141,1740862405923,-163.78,0.000485,45]
[355004142,1740862405951,-163.78,0.000485,45]
[355004143,1740862405980,-163.78,0.000485,45]
[355004144,1740862406009,-163.78,0.000485,45]
[355004145,1740862406051,-163.78,0.000485,45]
[355004146,1740862406083,-163.78,0.000485,45]
[355004147,1740862406113,-163.78,0.000485,45]
[355004148,1740862406143,-163.78,0.000485,45]
[355004149,1740862406173,-163.78,0.000485,45]
[355004150,1740862406203,-163.78,0.000485,45]
[355004151,1740862406233,-163.78,0.000485,45]
[355004152,1740862406262,-163.78,0.000485,45]
[355004153,1740862406290,-163.78,0.000485,45]
[355004154,1740862406319,-163.78,0.000485,45]
[355004155,1740862406347,-163.78,0.000485,45]
[355004156,1740862406377,-163.78,0.000485,45]
[355004157,1740862406404,-163.78,0.000485,45]
[355004158,1740862406435,-163.78,0.000485,45]
[355004159,1740862406464,-163.78,0.000485,45]
[355004160,1740862406495,-163.78,0.000485,45]
[355004161,1740862406523,-163.78,0.000485,45]
[355004162,1740862406550,-494.23723,0.0004966,68]
[355004163,1740862406575,-77984.2114,0.000499,120]
[355004164,1740862406602,-5000.0,0.000499,120]
[355004165,1740862406628,-251.765,0.000499,88]
[355004166,1740862406653,-157.14607024,0.000499,38]
[355004167,1740862406679,-19787.38853291,0.0004999,120]
[355004168,1740862406705,-5000.0,0.00049999,120]
[355004169,1740862406732,-500.0,0.00049999,120]
[355004170,1740862406758,-500.0,0.00049999,120]
[355004171,1740862406784,-251.96444818,0.00049999,120]
[355004172,1740862406811,-500.0,0.00049999,120]
[355004173,1740862406838,-500.0,0.00049999,120]
[355004174,1740862406864,-2000.0,0.00049999,120]
[355004175,1740862406892,-500.0,0.00049999,120]
[355004176,1740862406919,-500.0,0.00049999,120]
[355004177,1740862406947,-1105.59,0.00049999,120]
[355004178,1740862406974,-636.16,0.00049999,120]
[355004179,1740862406999,-500.0,0.00049999,120]
[355004180,1740862407025,-500.0,0.00049999,120]
[355004181,1740862407052,-284.25890372,0.00049999,120]
[355004182,1740862407078,-274.1211,0.00049999,120]
[355004183,1740862407105,-283.93503899,0.00049999,120]
[355004184,1740862407311,-500.0,0.00049999,120]
[355004185,1740862407338,-3400.691538,0.00049999,90]
[355004186,1740862407362,-4107.33,0.00049999,120]
[355004187,1740862407387,-500.0,0.00049999,120]
[355004188,1740862407414,-490000.0,0.0005,120]
[355004189,1740862407443,-1000000.0,0.0005,120]